[Event "*** Titled Tuesday Blitz"]
[Site "Chess.com"]
[Date "2020.04.21"]
[Round "2"]
[White "MattyDPerrine"]
[Black "baag"]
[Result "0-1"]
[WhiteElo "2316"]
[BlackElo "2641"]
[TimeControl "180+1"]
[EndTime "10:16:01 PDT"]
[Termination "baag won by resignation"]

1. Nf3 {[%clk 0:02:46.6]} 1... g6 {[%clk 0:02:59.6]} 2. c4 {[%clk 0:02:43.6]}
2... Bg7 {[%clk 0:02:59.7]} 3. d4 {[%clk 0:02:44.3]} 3... Nf6 {[%clk 0:02:59.8]}
4. g3 {[%clk 0:02:44]} 4... O-O {[%clk 0:03:00.3]} 5. Bg2 {[%clk 0:02:44.7]}
5... d6 {[%clk 0:03:00.8]} 6. O-O {[%clk 0:02:45.1]} 6... Nc6 {[%clk 0:03:01.3]}
7. Nc3 {[%clk 0:02:45.7]} 7... e5 {[%clk 0:03:01.7]} 8. d5 {[%clk 0:02:46.1]}
8... Nb8 {[%clk 0:03:01.4]} 9. e4 {[%clk 0:02:39.3]} 9... a5 {[%clk 0:03:00.6]}
10. h3 {[%clk 0:02:38.7]} 10... Na6 {[%clk 0:03:00.8]} 11. Be3 {[%clk
0:02:39.2]} 11... b6 {[%clk 0:02:59.6]} 12. Nd2 {[%clk 0:02:22.8]} 12... Nc5
{[%clk 0:02:56.5]} 13. b3 {[%clk 0:02:22.4]} 13... Nfd7 {[%clk 0:02:47.8]} 14.
g4 {[%clk 0:01:57.1]} 14... Nd3 {[%clk 0:02:43.1]} 15. Rb1 {[%clk 0:01:32.8]}
15... Nf4 {[%clk 0:02:41.9]} 16. Bxf4 {[%clk 0:01:32.4]} 16... exf4 {[%clk
0:02:42.8]} 17. Ne2 {[%clk 0:01:33.1]} 17... g5 {[%clk 0:02:34.6]} 18. Nf3
{[%clk 0:01:28.3]} 18... Ne5 {[%clk 0:02:31.3]} 19. Nxe5 {[%clk 0:01:26.4]}
19... Bxe5 {[%clk 0:02:31.7]} 20. Nd4 {[%clk 0:01:27.3]} 20... Qf6 {[%clk
0:02:21]} 21. Nf5 {[%clk 0:01:27.1]} 21... h5 {[%clk 0:02:18.8]} 22. Bf3 {[%clk
0:01:10.4]} 22... hxg4 {[%clk 0:02:12.1]} 23. hxg4 {[%clk 0:01:07.5]} 23... Bxf5
{[%clk 0:02:10.6]} 24. exf5 {[%clk 0:01:07.3]} 24... Kg7 {[%clk 0:02:11.1]} 25.
Kg2 {[%clk 0:01:07]} 25... a4 {[%clk 0:02:09.2]} 26. b4 {[%clk 0:00:59.2]} 26...
a3 {[%clk 0:02:09.3]} 27. Qb3 {[%clk 0:00:52.4]} 27... Bb2 {[%clk 0:02:06.7]}
28. Rh1 {[%clk 0:00:44]} 28... Rh8 {[%clk 0:02:05.2]} 29. Qd3 {[%clk 0:00:31.3]}
29... Rae8 {[%clk 0:02:03.2]} 30. Rxh8 {[%clk 0:00:30.7]} 30... Rxh8 {[%clk
0:02:03]} 31. Rh1 {[%clk 0:00:25.4]} 31... Re8 {[%clk 0:02:00]} 32. Bd1 {[%clk
0:00:13.3]} 32... Qc3 {[%clk 0:01:47.7]} 33. Qxc3+ {[%clk 0:00:09.7]} 33... Bxc3
{[%clk 0:01:48.6]} 34. b5 {[%clk 0:00:10.5]} 34... Re4 {[%clk 0:01:48.4]} 35.
Bb3 {[%clk 0:00:09]} 35... Re2 {[%clk 0:01:48.7]} 36. Kf3 {[%clk 0:00:08.1]}
36... Rb2 {[%clk 0:01:48.8]} 37. Rf1 {[%clk 0:00:08.5]} 37... Rxb3 {[%clk
0:01:49.1]} 38. axb3 {[%clk 0:00:09.1]} 38... a2 {[%clk 0:01:50]} 0-1

[Event "*** Titled Tuesday Blitz"]
[Site "Chess.com"]
[Date "2020.04.21"]
[Round "2"]
[White "GamayevOleg"]
[Black "fidezivkovic"]
[Result "1-0"]
[WhiteElo "2555"]
[BlackElo "2291"]
[TimeControl "180+1"]
[EndTime "10:16:01 PDT"]
[Termination "GamayevOleg won by resignation"]

1. d3 {[%clk 0:03:00.9]} 1... d5 {[%clk 0:02:59]} 2. e4 {[%clk 0:03:01.8]} 2...
dxe4 {[%clk 0:02:58]} 3. dxe4 {[%clk 0:03:02.7]} 3... Qxd1+ {[%clk 0:02:57.2]}
4. Kxd1 {[%clk 0:03:03.6]} 4... Nf6 {[%clk 0:02:56]} 5. f3 {[%clk 0:03:03.2]}
5... e5 {[%clk 0:02:53.5]} 6. Nd2 {[%clk 0:03:03.6]} 6... c6 {[%clk 0:02:46.4]}
7. c3 {[%clk 0:03:04.1]} 7... Be6 {[%clk 0:02:43.3]} 8. Kc2 {[%clk 0:03:04.6]}
8... Nbd7 {[%clk 0:02:41.2]} 9. Bc4 {[%clk 0:03:05.1]} 9... Bxc4 {[%clk
0:02:33.4]} 10. Nxc4 {[%clk 0:03:06]} 10... Bc5 {[%clk 0:02:32]} 11. a4 {[%clk
0:03:05.7]} 11... a5 {[%clk 0:02:25.9]} 12. Ne2 {[%clk 0:03:05.6]} 12... h6
{[%clk 0:02:09.5]} 13. Rd1 {[%clk 0:03:03.3]} 13... Ke7 {[%clk 0:02:05.4]} 14.
Bd2 {[%clk 0:03:03.1]} 14... Rhd8 {[%clk 0:01:58]} 15. Be1 {[%clk 0:03:02.9]}
15... Ne8 {[%clk 0:01:42.6]} 16. Bg3 {[%clk 0:03:00.8]} 16... f6 {[%clk
0:01:41.2]} 17. Rd2 {[%clk 0:02:59.8]} 17... Nd6 {[%clk 0:01:29.8]} 18. Nxd6
{[%clk 0:02:59.6]} 18... Bxd6 {[%clk 0:01:28.7]} 19. Rad1 {[%clk 0:03:00.5]}
19... Nc5 {[%clk 0:01:26]} 20. b3 {[%clk 0:03:00.5]} 20... Bc7 {[%clk
0:01:24.7]} 21. Rxd8 {[%clk 0:02:56.9]} 21... Rxd8 {[%clk 0:01:23.6]} 22. Rxd8
{[%clk 0:02:56.5]} 22... Kxd8 {[%clk 0:01:21.6]} 23. Bf2 {[%clk 0:02:57.4]}
23... Ne6 {[%clk 0:01:19.1]} 24. Be3 {[%clk 0:02:57.4]} 24... h5 {[%clk
0:01:17.1]} 25. Nc1 {[%clk 0:02:57.7]} 25... g6 {[%clk 0:01:13.4]} 26. h3 {[%clk
0:02:57.7]} 26... Kd7 {[%clk 0:01:06]} 27. Nd3 {[%clk 0:02:57.8]} 27... b5
{[%clk 0:01:04.5]} 28. Nc5+ {[%clk 0:02:56.3]} 28... Nxc5 {[%clk 0:01:03.4]} 29.
Bxc5 {[%clk 0:02:55.6]} 29... f5 {[%clk 0:01:01.8]} 30. g4 {[%clk 0:02:54.5]}
30... Ke6 {[%clk 0:01:00.5]} 31. Kd3 {[%clk 0:02:54.1]} 31... Kf6 {[%clk
0:00:58.2]} 32. Be3 {[%clk 0:02:52.4]} 32... Ke6 {[%clk 0:00:51.5]} 33. axb5
{[%clk 0:02:51.8]} 33... cxb5 {[%clk 0:00:50.7]} 34. c4 {[%clk 0:02:52.7]} 34...
bxc4+ {[%clk 0:00:48.5]} 35. Kxc4 {[%clk 0:02:53.6]} 35... fxe4 {[%clk 0:00:43]}
36. fxe4 {[%clk 0:02:53.3]} 36... hxg4 {[%clk 0:00:41.4]} 37. hxg4 {[%clk
0:02:54.2]} 37... Bd8 {[%clk 0:00:40]} 38. Kb5 {[%clk 0:02:53.8]} 38... Kf6
{[%clk 0:00:38.8]} 39. Bd2 {[%clk 0:02:53.2]} 39... Bc7 {[%clk 0:00:17.1]} 40.
Bxa5 {[%clk 0:02:42.1]} 40... Bxa5 {[%clk 0:00:15.2]} 41. Kxa5 {[%clk 0:02:43]}
41... Kg5 {[%clk 0:00:15.7]} 42. b4 {[%clk 0:02:43.4]} 42... Kxg4 {[%clk
0:00:16.6]} 43. b5 {[%clk 0:02:44.3]} 43... Kf3 {[%clk 0:00:17]} 44. b6 {[%clk
0:02:45.2]} 44... g5 {[%clk 0:00:17.5]} 45. b7 {[%clk 0:02:46.1]} 45... g4
{[%clk 0:00:18.4]} 46. b8=Q {[%clk 0:02:47]} 46... Kxe4 {[%clk 0:00:17.2]} 47.
Qb7+ {[%clk 0:02:46.9]} 47... Kf4 {[%clk 0:00:15.7]} 48. Qg2 {[%clk 0:02:47.3]}
48... e4 {[%clk 0:00:14.5]} 49. Kb4 {[%clk 0:02:48.2]} 49... e3 {[%clk
0:00:13.4]} 50. Kc3 {[%clk 0:02:49.1]} 50... g3 {[%clk 0:00:12.2]} 51. Kd3
{[%clk 0:02:49]} 51... Kg4 {[%clk 0:00:10.4]} 52. Kxe3 {[%clk 0:02:48.7]} 1-0

[Event "*** Titled Tuesday Blitz"]
[Site "Chess.com"]
[Date "2020.04.21"]
[Round "2"]
[White "Quattroporte300"]
[Black "Mizner"]
[Result "0-1"]
[WhiteElo "2276"]
[BlackElo "2516"]
[TimeControl "180+1"]
[EndTime "10:16:03 PDT"]
[Termination "Mizner won by resignation"]

1. e4 {[%clk 0:03:00.9]} 1... e6 {[%clk 0:02:59.4]} 2. d4 {[%clk 0:03:00.7]}
2... d5 {[%clk 0:03:00.3]} 3. Nd2 {[%clk 0:03:00.6]} 3... c5 {[%clk 0:02:59.7]}
4. Ngf3 {[%clk 0:02:59.4]} 4... cxd4 {[%clk 0:02:59.7]} 5. Nxd4 {[%clk
0:02:57.9]} 5... Nc6 {[%clk 0:02:58.6]} 6. Bb5 {[%clk 0:02:55.8]} 6... Bd7
{[%clk 0:02:58.7]} 7. Nxc6 {[%clk 0:02:54.9]} 7... bxc6 {[%clk 0:02:59.6]} 8.
Bd3 {[%clk 0:02:54.5]} 8... Qc7 {[%clk 0:02:57.5]} 9. O-O {[%clk 0:02:52.4]}
9... Ne7 {[%clk 0:02:53.9]} 10. b3 {[%clk 0:02:39.5]} 10... Ng6 {[%clk
0:02:29.8]} 11. Re1 {[%clk 0:02:22.5]} 11... Bd6 {[%clk 0:02:24.3]} 12. h3
{[%clk 0:02:09.4]} 12... Bh2+ {[%clk 0:02:10]} 13. Kh1 {[%clk 0:02:07.4]} 13...
Be5 {[%clk 0:02:10.9]} 14. Rb1 {[%clk 0:02:00.4]} 14... Bd4 {[%clk 0:01:58.1]}
15. Qf3 {[%clk 0:01:09.6]} 15... O-O {[%clk 0:01:30.7]} 16. Bb2 {[%clk
0:01:01.3]} 16... Bxb2 {[%clk 0:01:20.5]} 17. Rxb2 {[%clk 0:01:01.3]} 17... Qa5
{[%clk 0:01:14.6]} 18. c4 {[%clk 0:00:50.8]} 18... Ne5 {[%clk 0:01:06.3]} 19.
Qg3 {[%clk 0:00:45.7]} 19... Qc3 {[%clk 0:01:03.7]} 20. exd5 {[%clk 0:00:16.3]}
20... Nxd3 {[%clk 0:01:02.5]} 0-1

[Event "*** Titled Tuesday Blitz"]
[Site "Chess.com"]
[Date "2020.04.21"]
[Round "2"]
[White "Trankuilizer"]
[Black "hitaman"]
[Result "1-0"]
[WhiteElo "2505"]
[BlackElo "2688"]
[TimeControl "180+1"]
[EndTime "10:16:04 PDT"]
[Termination "Trankuilizer won by resignation"]

1. e4 {[%clk 0:03:00.9]} 1... c5 {[%clk 0:02:59.6]} 2. c3 {[%clk 0:03:00.7]}
2... d5 {[%clk 0:02:54]} 3. exd5 {[%clk 0:03:00.8]} 3... Qxd5 {[%clk 0:02:54.9]}
4. d4 {[%clk 0:03:01.4]} 4... Nf6 {[%clk 0:02:55.1]} 5. Nf3 {[%clk 0:03:01.7]}
5... g6 {[%clk 0:02:55.2]} 6. Qb3 {[%clk 0:02:58.2]} 6... Qxb3 {[%clk
0:02:41.3]} 7. axb3 {[%clk 0:02:57.9]} 7... Nbd7 {[%clk 0:02:42.2]} 8. Be3
{[%clk 0:02:51.7]} 8... cxd4 {[%clk 0:02:39.4]} 9. Nxd4 {[%clk 0:02:51.6]} 9...
Nd5 {[%clk 0:02:35.6]} 10. Bd2 {[%clk 0:02:33.6]} 10... Bg7 {[%clk 0:02:35.2]}
11. Nb5 {[%clk 0:02:32.4]} 11... O-O {[%clk 0:02:25.9]} 12. Rxa7 {[%clk
0:02:31.1]} 12... Rb8 {[%clk 0:02:12.9]} 13. Bc4 {[%clk 0:02:08.2]} 13... N7b6
{[%clk 0:02:10.3]} 14. O-O {[%clk 0:02:02]} 14... Nxc4 {[%clk 0:02:05.8]} 15.
bxc4 {[%clk 0:02:01.8]} 15... Nb6 {[%clk 0:02:06.7]} 16. b3 {[%clk 0:02:00.8]}
16... Bd7 {[%clk 0:02:04.7]} 17. Bf4 {[%clk 0:01:54.4]} 17... e5 {[%clk
0:02:03.7]} 18. Be3 {[%clk 0:01:53.7]} 18... Nc8 {[%clk 0:01:59.7]} 19. Ra2
{[%clk 0:01:50.7]} 19... b6 {[%clk 0:01:35.7]} 20. Rd1 {[%clk 0:01:46.4]} 20...
Bf5 {[%clk 0:01:31.9]} 21. N1a3 {[%clk 0:01:39.8]} 21... Ra8 {[%clk 0:01:29.4]}
22. Rad2 {[%clk 0:01:35.8]} 22... Ra6 {[%clk 0:01:00.6]} 23. h3 {[%clk
0:01:28.7]} 23... h5 {[%clk 0:00:58.9]} 24. c5 {[%clk 0:01:26.6]} 24... Be4
{[%clk 0:00:27.3]} 25. Nc4 {[%clk 0:01:17.2]} 25... Bc6 {[%clk 0:00:23]} 26. Nc7
{[%clk 0:01:15.1]} 1-0

[Event "*** Titled Tuesday Blitz"]
[Site "Chess.com"]
[Date "2020.04.21"]
[Round "2"]
[White "igorkovalenko"]
[Black "GmSergioBarrientos"]
[Result "1-0"]
[WhiteElo "2872"]
[BlackElo "2589"]
[TimeControl "180+1"]
[EndTime "10:16:07 PDT"]
[Termination "igorkovalenko won by resignation"]

1. d4 {[%clk 0:03:00.9]} 1... Nf6 {[%clk 0:01:25.6]} 2. Nf3 {[%clk 0:02:58.3]}
2... e6 {[%clk 0:01:25.7]} 3. c4 {[%clk 0:02:57.6]} 3... c5 {[%clk 0:01:26.6]}
4. e3 {[%clk 0:02:56]} 4... cxd4 {[%clk 0:01:26.5]} 5. exd4 {[%clk 0:02:56.9]}
5... d5 {[%clk 0:01:27.4]} 6. Nc3 {[%clk 0:02:57.1]} 6... Be7 {[%clk 0:01:28.3]}
7. cxd5 {[%clk 0:02:56.2]} 7... Nxd5 {[%clk 0:01:27.3]} 8. Bd3 {[%clk
0:02:56.4]} 8... Nc6 {[%clk 0:01:27.6]} 9. O-O {[%clk 0:02:56.2]} 9... O-O
{[%clk 0:01:27.1]} 10. Re1 {[%clk 0:02:56.5]} 10... h6 {[%clk 0:01:27.5]} 11.
Bc2 {[%clk 0:02:38.3]} 11... Ncb4 {[%clk 0:01:26.9]} 12. Bb1 {[%clk 0:02:36.3]}
12... b6 {[%clk 0:01:27.2]} 13. Ne4 {[%clk 0:02:29.9]} 13... Bb7 {[%clk
0:01:26.8]} 14. a3 {[%clk 0:02:29.5]} 14... Nc6 {[%clk 0:01:27]} 15. Qd3 {[%clk
0:02:29.6]} 15... f5 {[%clk 0:01:26]} 16. Nc3 {[%clk 0:02:27.3]} 16... Qd7
{[%clk 0:01:26.4]} 17. Nxd5 {[%clk 0:02:17]} 17... exd5 {[%clk 0:01:26.3]} 18.
Bf4 {[%clk 0:02:12.9]} 18... Rae8 {[%clk 0:01:24.8]} 19. Ba2 {[%clk 0:02:12.6]}
19... Kh8 {[%clk 0:01:23.9]} 20. Qd2 {[%clk 0:02:09.6]} 20... Kh7 {[%clk
0:01:23.4]} 21. Bb3 {[%clk 0:01:58.8]} 21... Bd6 {[%clk 0:01:23.3]} 22. Ba4
{[%clk 0:01:54.4]} 22... Re4 {[%clk 0:01:22.5]} 23. Bxd6 {[%clk 0:01:53.7]}
23... Qxd6 {[%clk 0:01:22.3]} 24. Bxc6 {[%clk 0:01:54.1]} 24... Bxc6 {[%clk
0:01:22.2]} 25. Ne5 {[%clk 0:01:52.1]} 25... Bb5 {[%clk 0:01:21.1]} 26. Rac1
{[%clk 0:01:43.8]} 26... Rxe1+ {[%clk 0:01:17.9]} 27. Qxe1 {[%clk 0:01:43.6]}
27... Re8 {[%clk 0:01:17.9]} 28. f4 {[%clk 0:01:38.3]} 28... Re7 {[%clk
0:01:17.8]} 29. Qc3 {[%clk 0:01:24.8]} 29... Bc4 {[%clk 0:01:16]} 30. h3 {[%clk
0:01:23.2]} 30... a5 {[%clk 0:01:15.6]} 31. Kh2 {[%clk 0:01:23.1]} 31... a4
{[%clk 0:01:15.6]} 32. Qg3 {[%clk 0:01:22.2]} 32... b5 {[%clk 0:01:14.9]} 33. h4
{[%clk 0:01:21.5]} 33... g6 {[%clk 0:01:13.4]} 34. Re1 {[%clk 0:01:18.1]} 34...
Qf6 {[%clk 0:01:13.1]} 35. Re3 {[%clk 0:01:16.6]} 35... Re6 {[%clk 0:01:12.3]}
36. Qh3 {[%clk 0:01:06.9]} 36... Qe7 {[%clk 0:01:10.9]} 37. h5 {[%clk
0:01:06.1]} 37... gxh5 {[%clk 0:01:05.5]} 38. Qxf5+ {[%clk 0:01:05.8]} 38... Kh8
{[%clk 0:01:06]} 39. Ng6+ {[%clk 0:01:01.5]} 39... Kg7 {[%clk 0:01:06.3]} 40.
Nxe7 {[%clk 0:01:01.2]} 40... Rxe3 {[%clk 0:01:05.5]} 41. Qg6+ {[%clk
0:01:00.8]} 41... Kf8 {[%clk 0:01:05]} 42. Nf5 {[%clk 0:01:01.1]} 1-0

[Event "*** Titled Tuesday Blitz"]
[Site "Chess.com"]
[Date "2020.04.21"]
[Round "2"]
[White "Harut-1998"]
[Black "almaguerjm"]
[Result "1-0"]
[WhiteElo "2621"]
[BlackElo "2327"]
[TimeControl "180+1"]
[EndTime "10:16:09 PDT"]
[Termination "Harut-1998 won by resignation"]

1. d4 {[%clk 0:03:00.9]} 1... Nf6 {[%clk 0:02:57.9]} 2. Nf3 {[%clk 0:03:00.7]}
2... c5 {[%clk 0:02:58.2]} 3. d5 {[%clk 0:02:59.2]} 3... e6 {[%clk 0:02:57.9]}
4. c4 {[%clk 0:02:57.1]} 4... exd5 {[%clk 0:02:58.3]} 5. cxd5 {[%clk 0:02:56.5]}
5... d6 {[%clk 0:02:59.2]} 6. Nc3 {[%clk 0:02:56.3]} 6... g6 {[%clk 0:03:00.1]}
7. g3 {[%clk 0:02:56.6]} 7... Bg7 {[%clk 0:03:00.7]} 8. Bg2 {[%clk 0:02:57.3]}
8... O-O {[%clk 0:03:01.2]} 9. O-O {[%clk 0:02:57.9]} 9... Re8 {[%clk
0:02:41.9]} 10. Bf4 {[%clk 0:02:56.5]} 10... Ne4 {[%clk 0:02:39.9]} 11. Nxe4
{[%clk 0:02:55.3]} 11... Rxe4 {[%clk 0:02:40.8]} 12. Nd2 {[%clk 0:02:55.6]}
12... Rb4 {[%clk 0:02:40.5]} 13. a3 {[%clk 0:02:52.2]} 13... Rxf4 {[%clk
0:02:29.5]} 14. gxf4 {[%clk 0:02:53.1]} 14... Bxb2 {[%clk 0:02:29.3]} 15. Rb1
{[%clk 0:02:49.8]} 15... Bxa3 {[%clk 0:02:26.7]} 16. e4 {[%clk 0:02:45.7]} 16...
b5 {[%clk 0:02:21.7]} 17. e5 {[%clk 0:02:41.7]} 17... Nd7 {[%clk 0:02:13.5]} 18.
Ne4 {[%clk 0:02:09.9]} 18... dxe5 {[%clk 0:01:55]} 19. d6 {[%clk 0:02:08.3]}
19... Rb8 {[%clk 0:01:21.1]} 20. fxe5 {[%clk 0:02:06.7]} 20... Nxe5 {[%clk
0:01:21.3]} 21. Rb3 {[%clk 0:01:54.3]} 21... Bb4 {[%clk 0:01:18.1]} 22. Qa1
{[%clk 0:01:54]} 22... f6 {[%clk 0:01:04.2]} 23. Qxa7 {[%clk 0:01:44.3]} 23...
Be6 {[%clk 0:01:04.3]} 24. Nxf6+ {[%clk 0:01:34.2]} 24... Qxf6 {[%clk
0:00:57.6]} 25. Qxb8+ {[%clk 0:01:31.1]} 25... Kg7 {[%clk 0:00:52.4]} 26. Re3
{[%clk 0:01:29.1]} 26... Nf7 {[%clk 0:00:46.6]} 27. Qe8 {[%clk 0:01:22.2]} 27...
Bc4 {[%clk 0:00:33.6]} 28. d7 {[%clk 0:01:20.9]} 28... Bxf1 {[%clk 0:00:32.9]}
29. Rf3 {[%clk 0:01:17.5]} 29... Bxg2 {[%clk 0:00:18.2]} 30. Rxf6 {[%clk
0:01:15.1]} 30... Kxf6 {[%clk 0:00:19.1]} 31. d8=Q+ {[%clk 0:01:11.7]} 1-0

[Event "*** Titled Tuesday Blitz"]
[Site "Chess.com"]
[Date "2020.04.21"]
[Round "2"]
[White "fusaran"]
[Black "cottage_cheese"]
[Result "1-0"]
[WhiteElo "2455"]
[BlackElo "2224"]
[TimeControl "180+1"]
[EndTime "10:16:09 PDT"]
[Termination "fusaran won by resignation"]

1. e4 {[%clk 0:03:00.9]} 1... e6 {[%clk 0:02:57.5]} 2. d4 {[%clk 0:03:00.7]}
2... d5 {[%clk 0:02:57]} 3. Nd2 {[%clk 0:03:01.4]} 3... h6 {[%clk 0:02:51.9]} 4.
Bd3 {[%clk 0:03:00.2]} 4... c5 {[%clk 0:02:50.3]} 5. exd5 {[%clk 0:02:43.6]}
5... exd5 {[%clk 0:02:51.2]} 6. Qe2+ {[%clk 0:02:41.7]} 6... Qe7 {[%clk
0:02:34.1]} 7. Ngf3 {[%clk 0:02:11.5]} 7... Qxe2+ {[%clk 0:02:32]} 8. Bxe2
{[%clk 0:02:11.3]} 8... Nc6 {[%clk 0:02:28.8]} 9. O-O {[%clk 0:02:08.7]} 9...
Nf6 {[%clk 0:02:20.6]} 10. Bb5 {[%clk 0:02:05.1]} 10... Be6 {[%clk 0:01:54.7]}
11. Re1 {[%clk 0:01:45.4]} 11... c4 {[%clk 0:01:38]} 12. Ne5 {[%clk 0:01:39.1]}
12... Rc8 {[%clk 0:01:38.3]} 13. b3 {[%clk 0:01:35.4]} 13... Be7 {[%clk
0:00:59.3]} 14. bxc4 {[%clk 0:01:22]} 14... dxc4 {[%clk 0:01:00.2]} 15. Nxc6
{[%clk 0:00:53.7]} 15... bxc6 {[%clk 0:01:01.1]} 16. Bxc4 {[%clk 0:00:53.3]}
16... Bd5 {[%clk 0:00:51.7]} 17. Ba3 {[%clk 0:00:51.1]} 17... Rc7 {[%clk
0:00:48.9]} 18. Rab1 {[%clk 0:00:48.7]} 1-0

[Event "*** Titled Tuesday Blitz"]
[Site "Chess.com"]
[Date "2020.04.21"]
[Round "2"]
[White "gammagramma"]
[Black "Jadro9"]
[Result "0-1"]
[WhiteElo "2496"]
[BlackElo "2713"]
[TimeControl "180+1"]
[EndTime "10:16:10 PDT"]
[Termination "Jadro9 won by resignation"]

1. d4 {[%clk 0:03:00.9]} 1... d5 {[%clk 0:02:58.9]} 2. Nf3 {[%clk 0:03:01.1]}
2... Nf6 {[%clk 0:02:58.3]} 3. c4 {[%clk 0:03:01.4]} 3... e6 {[%clk 0:02:58.2]}
4. g3 {[%clk 0:03:01.2]} 4... Be7 {[%clk 0:02:57.8]} 5. Bg2 {[%clk 0:02:59.2]}
5... O-O {[%clk 0:02:58.4]} 6. O-O {[%clk 0:02:59.9]} 6... Nbd7 {[%clk
0:02:58.4]} 7. Nbd2 {[%clk 0:02:58.6]} 7... c6 {[%clk 0:02:57.4]} 8. Qc2 {[%clk
0:02:58.5]} 8... b6 {[%clk 0:02:57.4]} 9. e4 {[%clk 0:02:58.8]} 9... dxc4 {[%clk
0:02:57.8]} 10. Nxc4 {[%clk 0:02:54.6]} 10... Bb7 {[%clk 0:02:58.1]} 11. Rd1
{[%clk 0:02:54.7]} 11... c5 {[%clk 0:02:56.6]} 12. Nfe5 {[%clk 0:02:36]} 12...
cxd4 {[%clk 0:02:53]} 13. Rxd4 {[%clk 0:02:31.9]} 13... Qc7 {[%clk 0:02:53.3]}
14. Nxd7 {[%clk 0:02:28.5]} 14... Nxd7 {[%clk 0:02:54.2]} 15. Ne3 {[%clk
0:02:07.3]} 15... Qxc2 {[%clk 0:02:44.2]} 16. Nxc2 {[%clk 0:02:08.2]} 16... Rfd8
{[%clk 0:02:44.2]} 17. Be3 {[%clk 0:01:57.9]} 17... Bf6 {[%clk 0:02:43.5]} 18.
Rb4 {[%clk 0:01:45.9]} 18... Ne5 {[%clk 0:02:42.6]} 19. f4 {[%clk 0:01:28.6]}
19... Nd3 {[%clk 0:02:36.4]} 20. Rb3 {[%clk 0:01:28.4]} 20... Rac8 {[%clk
0:02:09.5]} 21. Nb4 {[%clk 0:01:23.8]} 21... Nxb4 {[%clk 0:02:06.7]} 22. Rxb4
{[%clk 0:01:24.7]} 22... Rc2 {[%clk 0:02:07]} 23. Re1 {[%clk 0:01:15.5]} 23...
Bxb2 {[%clk 0:02:02.7]} 24. Ra4 {[%clk 0:01:04.4]} 24... a6 {[%clk 0:01:48.5]}
25. Bxb6 {[%clk 0:01:02.2]} 25... Rdd2 {[%clk 0:01:48.7]} 26. Bf1 {[%clk
0:00:56.9]} 26... Rxh2 {[%clk 0:01:47.7]} 27. Bxa6 {[%clk 0:00:49.5]} 27... Bxa6
{[%clk 0:01:47.5]} 28. Rxa6 {[%clk 0:00:49.7]} 28... h5 {[%clk 0:01:48]} 29. a4
{[%clk 0:00:40.7]} 29... Rhg2+ {[%clk 0:01:43.9]} 30. Kf1 {[%clk 0:00:37.9]}
30... Rxg3 {[%clk 0:01:43.9]} 31. Re2 {[%clk 0:00:37.8]} 31... Rxe2 {[%clk
0:01:33]} 32. Kxe2 {[%clk 0:00:38]} 32... h4 {[%clk 0:01:32.6]} 33. a5 {[%clk
0:00:37.7]} 33... h3 {[%clk 0:01:32.4]} 34. Ra8+ {[%clk 0:00:32.4]} 34... Kh7
{[%clk 0:01:32]} 35. Rc8 {[%clk 0:00:25.7]} 35... h2 {[%clk 0:01:20.8]} 0-1

[Event "*** Titled Tuesday Blitz"]
[Site "Chess.com"]
[Date "2020.04.21"]
[Round "2"]
[White "TST2014"]
[Black "Ave_Mariia"]
[Result "1-0"]
[WhiteElo "2590"]
[BlackElo "2303"]
[TimeControl "180+1"]
[EndTime "10:16:11 PDT"]
[Termination "TST2014 won by resignation"]

1. d4 {[%clk 0:03:00.9]} 1... Nf6 {[%clk 0:02:59.7]} 2. c4 {[%clk 0:03:00.2]}
2... g6 {[%clk 0:02:59.7]} 3. Nf3 {[%clk 0:02:59.9]} 3... Bg7 {[%clk 0:02:59.7]}
4. Nc3 {[%clk 0:02:59.6]} 4... O-O {[%clk 0:02:59.4]} 5. e4 {[%clk 0:02:59.2]}
5... d6 {[%clk 0:02:59.8]} 6. Be2 {[%clk 0:02:59.7]} 6... e5 {[%clk 0:03:00.1]}
7. O-O {[%clk 0:03:00]} 7... Nc6 {[%clk 0:03:00.4]} 8. d5 {[%clk 0:03:00.4]}
8... Ne7 {[%clk 0:03:01]} 9. b4 {[%clk 0:03:00.7]} 9... Nh5 {[%clk 0:03:00.5]}
10. g3 {[%clk 0:03:00.1]} 10... f5 {[%clk 0:02:59.7]} 11. Ng5 {[%clk 0:03:00.1]}
11... Nf6 {[%clk 0:02:58.6]} 12. Bf3 {[%clk 0:02:59.5]} 12... Rb8 {[%clk
0:02:58.5]} 13. a4 {[%clk 0:02:55]} 13... h6 {[%clk 0:02:56.7]} 14. Ne6 {[%clk
0:02:54.3]} 14... Bxe6 {[%clk 0:02:57.3]} 15. dxe6 {[%clk 0:02:55.2]} 15... c6
{[%clk 0:02:49.1]} 16. Ba3 {[%clk 0:02:49.9]} 16... d5 {[%clk 0:02:33.9]} 17.
cxd5 {[%clk 0:02:38.6]} 17... fxe4 {[%clk 0:02:19.9]} 18. Nxe4 {[%clk 0:02:29]}
18... Nxe4 {[%clk 0:02:06.7]} 19. Bxe4 {[%clk 0:02:27.8]} 19... cxd5 {[%clk
0:02:07.1]} 20. b5 {[%clk 0:02:27.7]} 20... dxe4 {[%clk 0:01:51.4]} 21. Qxd8
{[%clk 0:02:28]} 21... Rfxd8 {[%clk 0:01:50.1]} 22. Bxe7 {[%clk 0:02:28.5]}
22... Re8 {[%clk 0:01:49.3]} 23. Bc5 {[%clk 0:02:11.9]} 23... b6 {[%clk
0:01:44.1]} 24. Be3 {[%clk 0:01:48.3]} 24... Rxe6 {[%clk 0:01:44.1]} 25. Rac1
{[%clk 0:01:48.5]} 25... Bf8 {[%clk 0:01:29.3]} 26. Rc7 {[%clk 0:01:47.4]} 26...
Re7 {[%clk 0:01:29.3]} 27. Rfc1 {[%clk 0:01:46.7]} 27... Rd8 {[%clk 0:01:07]}
28. Rxe7 {[%clk 0:01:41.4]} 28... Bxe7 {[%clk 0:01:07.9]} 29. Rc7 {[%clk
0:01:41.8]} 29... Bg5 {[%clk 0:00:40.5]} 30. Bxg5 {[%clk 0:01:33.6]} 30... hxg5
{[%clk 0:00:41.4]} 31. Rxa7 {[%clk 0:01:33.9]} 31... Rd4 {[%clk 0:00:41.8]} 32.
a5 {[%clk 0:01:29.8]} 32... bxa5 {[%clk 0:00:25.5]} 33. b6 {[%clk 0:01:29.9]}
1-0